bitfinex-derivatives/quotes_ETHF0:USTF0_20240913
["timestamp","ask_amount","ask_price","bid_price","bid_amount"]
[1726191010139,0.4058,2357.7,2357.5,1.20294]
[1726191011157,0.82992,2357.7,2357.5,1.20294]
[1726191011556,0.4058,2357.7,2357.5,0.7788]
[1726191012148,0.4058,2357.7,2357.5,1.20294]
[1726191012149,0.82993,2357.7,2357.5,1.20294]
[1726191013153,0.4058,2357.7,2357.5,1.20294]
[1726191014360,0.82992,2357.7,2357.5,1.20294]
[1726191015659,0.4058,2357.7,2357.5,1.20294]
[1726191016054,0.82992,2357.7,2357.5,0.7788]
[1726191016261,0.82992,2357.7,2357.5,1.20295]
[1726191016459,0.4058,2357.7,2357.5,1.20295]
[1726191017356,0.82993,2357.7,2357.5,0.7788]
[1726191019262,0.82993,2357.7,2357.5,1.20295]
[1726191020264,0.82993,2357.7,2357.5,0.7788]
[1726191021159,0.42413,2357.6,2357.5,0.7788]
[1726191021463,0.42415,2357.5,2357.4,0.3968]
[1726191021666,3.63195,2357.5,2357.2,1.1983]
[1726191021968,0.3949,2357.4,2357.2,1.6077]
[1726191022261,0.3949,2357.4,2357.3,0.42419]
[1726191022662,3.2078,2357.5,2357.3,0.42419]
[1726191022857,3.63195,2357.5,2357.3,0.42419]
[1726191023057,3.2078,2357.5,2357.3,0.42419]
[1726191024464,0.42416,2357.5,2357.3,0.42418]
[1726191024665,0.4021,2357.4,2357.3,0.42418]
[1726191027371,0.4021,2357.4,2357.2,4.10166946]
[1726191027568,0.82628,2357.4,2357.2,2.29746946]
[1726191027763,0.59806423,2357.4,2357.2,1.1835]
[1726191028468,0.42419,2357.3,2357.2,1.1835]
[1726191031765,1.38,2357.3,2357.1,1.11396946]
[1726191032078,1.06057,2357.1,2356.7,5.03916946]
[1726191032264,1.7549,2357.0,2356.7,1.11396946]
[1726191032468,1.7549,2357.0,2356.7,1.53825946]
[1726191032469,0.79915,2357.0,2356.7,1.53825946]
[1726191032768,0.79915,2357.0,2356.6,4.08426946]
[1726191033573,0.42426,2356.9,2356.6,4.08426946]
[1726191033876,1.1895,2357.3,2357.0,0.42424]
[1726191034077,0.3749,2357.3,2357.1,1.61792]
[1726191034270,4.5878,2357.5,2357.2,1.38]
[1726191034271,3.40483065,2357.5,2357.2,1.38]
[1726191034465,0.7437,2357.6,2357.3,1.80417]
[1726191034772,0.79904,2357.6,2357.4,0.8036]
[1726191034963,0.79904,2357.6,2357.4,1.1937]
[1726191037576,0.3749,2357.6,2357.4,1.61786]
[1726191038171,0.3749,2357.6,2357.4,1.1937]
[1726191039376,0.79904,2357.6,2357.4,1.1937]
[1726191040578,0.79904,2357.6,2357.4,1.61787]
[1726191042089,0.3749,2357.6,2357.4,1.1937]
[1726191042386,0.3749,2357.6,2357.4,1.61787]
[1726191042387,0.79905,2357.6,2357.4,1.61787]
[1726191045183,0.42415,2357.5,2357.4,1.1937]
[1726191045681,2.17904,2357.6,2357.4,1.1937]
[1726191046391,2.17904,2357.6,2357.4,1.61787]
[1726191048487,2.17904,2357.6,2357.4,1.1937]
[1726191050484,1.7549,2357.6,2357.4,1.1937]
[1726191050687,0.42415,2357.5,2357.4,1.1937]
[1726191050882,1.7549,2357.6,2357.4,1.1937]
[1726191051189,2.17904,2357.6,2357.4,1.1937]
[1726191051687,0.42415,2357.5,2357.4,1.1937]
[1726191051990,1.7549,2357.6,2357.4,1.1937]
[1726191051991,2.17905,2357.6,2357.4,1.1937]
[1726191052393,0.7672,2357.5,2357.4,1.1937]
[1726191053689,1.19135,2357.5,2357.4,1.1937]
[1726191054179,0.7672,2357.5,2357.4,1.1937]
[1726191054987,0.42421,2357.2,2357.0,1.11396946]
[1726191055184,0.42421,2357.2,2357.0,1.51766946]
[1726191055185,0.3705,2357.1,2357.0,1.51766946]
[1726191055381,0.3705,2357.1,2357.0,0.4037]
[1726191056893,1.7505,2357.1,2356.8,1.11396946]
[1726191057190,0.42426,2356.9,2356.7,5.43756946]
[1726191057394,0.42428,2356.8,2356.7,0.3984]
[1726191058488,1.38,2356.8,2356.5,1.88592073]
[1726191058691,1.38,2356.8,2356.4,2.04096904]
[1726191058692,0.8314,2356.7,2356.4,2.04096904]
[1726191059009,1.80433,2356.5,2356.4,0.53054831]
[1726191059687,5.01213,2356.5,2356.4,0.53054831]
[1726191062393,5.01213,2356.5,2356.3,0.7887]
[1726191062893,1.80433,2356.5,2356.3,0.7887]
[1726191063399,5.01213,2356.5,2356.3,0.7887]
[1726191065191,1.80433,2356.5,2356.3,0.7887]
[1726191065996,5.01213,2356.5,2356.3,0.7887]
[1726191067091,1.80433,2356.5,2356.3,0.7887]
[1726191067292,5.01213,2356.5,2356.3,0.7887]
[1726191068090,0.42435,2356.4,2356.3,0.7887]
[1726191068294,5.01214,2356.5,2356.3,0.7887]
[1726191070611,0.42435,2356.4,2356.3,0.7887]
[1726191070907,0.42435,2356.4,2356.1,0.81999]
[1726191071097,0.42435,2356.4,2356.1,1.60129]
[1726191073906,0.81805,2356.4,2356.1,1.60129]
[1726191077797,0.81805,2356.4,2356.2,0.42439]
[1726191078806,0.81805,2356.4,2356.1,1.1769]
[1726191078807,0.81805,2356.4,2356.1,1.60129]
[1726191081111,0.81805,2356.4,2356.1,0.7732]
[1726191081112,1.80439,2356.2,2356.1,0.7732]
[1726191081300,0.42442,2356.0,2355.8,3.9252]
[1726191081512,0.79674,2355.9,2355.7,1.1662]
[1726191082504,0.3723,2355.9,2355.7,1.59068]
[1726191083711,3.2078,2356.2,2355.8,1.38]
[1726191083914,0.198,2356.4,2356.0,1.38]
[1726191084119,0.42436,2356.4,2356.2,0.42437]
[1726191084304,1.20594,2356.5,2356.2,0.42438]
[1726191084606,0.42435,2356.4,2356.2,0.42438]
[1726191085303,0.42437,2356.3,2356.1,1.1356]
[1726191085606,0.42437,2356.3,2356.1,1.56]
[1726191086209,1.80436,2356.4,2356.1,1.56]
[1726191087113,1.80436,2356.4,2356.2,0.42438]
[1726191087806,1.80436,2356.4,2356.1,1.1356]
[1726191087807,3.63212,2356.6,2356.1,2.5156]
[1726191087998,3.63212,2356.6,2356.4,0.42434]
[1726191088207,3.63212,2356.6,2356.5,1.1663]
[1726191088603,2.19949,2356.8,2356.5,1.1663]
[1726191088909,3.2078,2356.9,2356.7,0.4243]
[1726191089104,3.2078,2356.9,2356.6,1.38]
[1726191089406,3.2078,2356.9,2356.8,0.42428]
[1726191092099,0.81944,2357.1,2356.9,0.42424]
[1726191092100,0.3952,2357.1,2356.9,0.42424]
[1726191092306,0.3952,2357.1,2357.0,1.1921]
[1726191092614,0.3952,2357.1,2357.0,1.61634]
[1726191092904,0.42415,2357.5,2357.1,0.42422]
[1726191093106,0.42419,2357.3,2357.0,1.61633]
[1726191094303,3.63199,2357.3,2357.1,0.42422]
[1726191094811,3.2078,2357.3,2357.1,0.42422]
[1726191095014,3.40418,2357.4,2357.1,0.42422]
[1726191097213,0.19237284,2357.6,2357.3,0.42419]
[1726191097405,0.42412,2357.7,2357.4,1.54907]
[1726191097599,0.42412,2357.7,2357.4,1.1249]
[1726191099007,0.42412,2357.7,2357.4,1.54907]
[1726191099914,3.63192,2357.7,2357.4,1.54907]
[1726191100307,3.2078,2357.7,2357.4,1.1249]
[1726191100508,0.42408,2357.9,2357.5,3.2078]
[1726191100806,6.60267933,2358.1,2357.4,1.1249]
[1726191101006,0.3887,2357.8,2357.7,0.42411]
[1726191101612,0.3887,2357.8,2357.4,4.3327]
[1726191101917,0.3887,2357.8,2357.7,0.42412]
[1726191110016,0.3887,2357.8,2357.6,0.42412]
[1726191110207,0.3887,2357.8,2357.6,0.42413]
[1726191113717,1.7687,2357.8,2357.6,0.42413]
[1726191113919,0.3698,2357.7,2357.6,0.42413]
[1726191114913,0.3698,2357.7,2357.5,0.42414]
[1726191115117,0.3698,2357.7,2357.6,0.42413]
[1726191115414,0.3698,2357.7,2357.5,0.42414]
[1726191115617,0.3698,2357.7,2357.6,0.42413]
[1726191116013,0.3698,2357.7,2357.5,0.42414]
[1726191116413,0.79392,2357.7,2357.4,4.75686]
[1726191116617,0.79392,2357.7,2357.2,0.42419]
[1726191116618,1.80415,2357.5,2357.2,0.42419]
[1726191116820,0.4242,2357.3,2357.1,0.3755]
[1726191117116,2.1814,2357.2,2357.1,0.3755]
[1726191117716,0.8014,2357.2,2357.1,0.3755]
[1726191117911,0.4061,2357.2,2357.1,0.3755]
[1726191118211,0.3723261,2357.4,2357.3,0.42419]
[1726191120617,0.37,2357.4,2357.3,0.42419]
[1726191121222,0.4061,2357.6,2357.4,0.42417]
[1726191121223,0.83024,2357.6,2357.4,0.42417]
[1726191121521,0.83024,2357.6,2357.5,0.3849]
[1726191121522,1.20774,2357.6,2357.5,0.3849]
[1726191121720,1.20774,2357.6,2357.5,0.38407392]
[1726191123019,0.3775,2357.6,2357.5,0.38407392]
[1726191123215,0.3775,2357.6,2357.5,0.80822392]
[1726191123422,1.20111,2357.8,2357.5,0.80822392]
[1726191123619,0.4042,2357.7,2357.5,0.80822392]
[1726191124827,0.82832,2357.7,2357.5,0.80822392]
[1726191125128,0.4042,2357.7,2357.5,0.80822392]
[1726191125823,0.82832,2357.7,2357.5,0.38407392]
[1726191126723,0.82832,2357.7,2357.5,0.80822392]
[1726191128227,0.4042,2357.7,2357.5,0.80822392]
[1726191128425,0.82832,2357.7,2357.5,0.80822392]
[1726191129422,4.03612,2357.7,2357.5,0.80822392]
[1726191129625,4.03612,2357.7,2357.5,0.38407392]
[1726191129927,0.42417,2357.4,2357.2,0.4242]
[1726191130133,0.3816,2357.3,2357.2,0.4242]
[1726191135138,0.42416,2357.5,2357.3,0.42418]
[1726191135333,0.42414,2357.6,2357.4,0.82697]
[1726191135534,0.42415,2357.5,2357.4,0.4028]
[1726191135837,0.3871,2357.6,2357.4,0.82697]
[1726191135838,0.81125,2357.6,2357.4,0.82697]
[1726191140138,2.19125,2357.6,2357.4,0.82697]
[1726191140442,1.80415,2357.5,2357.3,0.42418]
[1726191140632,0.3866,2357.4,2357.3,0.42418]
[1726191140833,0.7909,2357.4,2357.3,0.42418]
[1726191141140,0.42419,2357.3,2357.2,0.3968]
[1726191141338,2.20259,2357.3,2357.0,1.20654]
[1726191141531,2.20259,2357.3,2357.0,1.59274]
[1726191141737,0.42423,2357.1,2356.8,0.42427]
[1726191141931,1.7784,2357.3,2356.9,0.81045]
[1726191141932,0.42421,2357.2,2356.9,0.81045]
[1726191142131,2.2026,2357.3,2357.0,0.42424]
[1726191142744,1.7784,2357.3,2357.1,0.42422]
[1726191142940,0.82259,2357.3,2357.0,0.42423]
[1726191144043,0.42421,2357.2,2357.0,0.42423]
[1726191145141,0.099,2357.7,2357.1,9.94222073]
[1726191145345,3.3068,2357.8,2357.4,4.5878]
[1726191145346,3.597,2357.8,2357.4,4.5878]
[1726191145546,3.597,2357.8,2357.7,0.42412]
[1726191146343,3.597,2357.8,2357.6,1.20322]
[1726191146937,3.597,2357.8,2357.7,0.42412]
[1726191147544,4.0211,2357.8,2357.6,1.20322]
[1726191147736,3.597,2357.8,2357.6,1.20322]
[1726191148343,3.597,2357.8,2357.7,0.42412]
[1726191148933,3.2078,2357.8,2357.7,0.42412]
[1726191150039,3.2078,2357.8,2357.5,0.4091]
[1726191150040,3.63191,2357.8,2357.5,0.83324]
[1726191150244,0.3695,2357.7,2357.5,0.4091]
[1726191151142,0.3695,2357.7,2357.6,0.42413]
[1726191152544,0.83359,2357.9,2357.7,0.42411]
[1726191152747,1.21209,2357.9,2357.8,0.3882]
[1726191156049,0.788,2357.9,2357.8,0.8123]
[1726191157537,0.788,2357.9,2357.8,0.3882]
[1726191157743,0.788,2357.9,2357.8,0.8123]
[1726191162053,0.788,2357.9,2357.8,0.3882]
[1726191164846,0.3785,2357.9,2357.8,0.3882]
[1726191165056,0.3785,2357.9,2357.8,1.1721]
[1726191165352,0.3785,2357.9,2357.8,1.5962]
[1726191165848,0.59417933,2358.1,2357.9,0.42407]
[1726191166245,1.01821933,2358.1,2357.9,0.42407]
[1726191167058,0.59417933,2358.1,2357.9,0.42407]
[1726191167354,1.01822933,2358.1,2357.9,0.42407]
[1726191167555,0.59417933,2358.1,2357.9,0.42407]
[1726191167752,0.59417933,2358.1,2358.0,0.42406]
[1726191167948,0.3773,2358.1,2358.0,0.42406]
[1726191169351,2.17942,2358.3,2358.1,0.42404]
[1726191169550,2.57422,2358.3,2358.2,0.369]
[1726191170053,2.78991392,2358.3,2358.2,0.369]
[1726191172256,2.36589392,2358.3,2358.2,0.369]
[1726191172462,1.98049392,2358.3,2358.2,1.1709]
[1726191173162,0.61049392,2358.3,2358.2,1.59493]
[1726191174174,0.20904223,2358.6,2358.4,0.42397]
[1726191174368,0.59954223,2358.6,2358.4,0.42397]
[1726191174569,0.59954223,2358.6,2358.5,0.3722]
[1726191175170,0.3905,2358.6,2358.5,0.3722]
[1726191175665,0.81445,2358.6,2358.5,0.3722]
[1726191175868,0.3905,2358.6,2358.5,0.79617]
[1726191177070,0.3905,2358.6,2358.5,0.3722]
[1726191178270,0.3905,2358.6,2358.5,0.79617]
[1726191179671,0.3905,2358.6,2358.5,0.3722]
[1726191180079,2.18445,2358.6,2358.5,0.3722]
[1726191180475,1.7605,2358.6,2358.4,0.42399]
[1726191182588,1.7605,2358.6,2358.3,0.3897]
[1726191182589,1.79398,2358.5,2358.3,0.3897]
[1726191182886,1.79398,2358.5,2358.2,0.3943]
[1726191182887,0.424,2358.4,2358.2,0.3943]
[1726191183090,0.424,2358.4,2357.9,3.9252]
[1726191183091,1.37,2358.3,2357.9,3.9252]
[1726191183286,1.37,2358.0,2357.9,3.9252]
[1726191183789,1.37,2358.0,2357.7,1.6099]
[1726191184581,1.37,2358.0,2357.7,0.7936]
[1726191184780,1.37,2357.8,2357.7,0.3897]
[1726191185286,1.7582,2357.8,2357.7,0.3897]
[1726191186481,1.7582,2357.8,2357.5,1.22024]
[1726191188395,2.18231,2357.8,2357.5,0.7961]
[1726191188691,5.39011,2357.8,2357.5,0.7961]
[1726191188993,4.966,2357.8,2357.5,1.22025]
[1726191189386,5.3901,2357.8,2357.5,1.22025]
[1726191189582,4.966,2357.8,2357.4,0.3697]
[1726191189786,4.966,2357.8,2357.2,1.20889]
[1726191189787,0.42414,2357.6,2357.2,1.20889]
[1726191189991,0.7653,2357.5,2357.2,1.20889]
[1726191190196,0.7653,2357.5,2357.3,0.42418]
[1726191190394,0.4088,2357.4,2357.3,0.42418]
[1726191191390,1.79412,2357.7,2357.2,0.7847]
[1726191191590,0.83294,2357.6,2357.3,0.42417]
[1726191192793,0.83294,2357.6,2357.2,1.2089]
[1726191192794,1.79416,2357.5,2357.2,1.2089]
[1726191192982,0.83236,2357.5,2357.2,1.2089]
[1726191195191,1.7782,2357.5,2357.2,0.7847]
[1726191195398,1.7782,2357.5,2357.1,1.7393]
[1726191195399,1.79419,2357.3,2357.1,0.3693]
[1726191195788,0.3871,2357.2,2357.1,0.3693]
[1726191195993,1.7571,2357.2,2356.9,0.7976]
[1726191196189,1.7571,2357.2,2356.9,0.3862]
[1726191196190,0.42424,2357.0,2356.9,0.3862]
[1726191196503,3.2078,2357.1,2356.6,1.2219]
[1726191196504,4.9502,2357.1,2356.6,1.2219]
[1726191196792,4.9502,2357.1,2356.6,2.9781]
[1726191196793,0.42425,2357.0,2356.6,2.9781]
[1726191196991,0.42425,2357.0,2356.7,0.42429]
[1726191197494,0.42425,2357.0,2356.6,2.9781]
[1726191197692,0.42425,2357.0,2356.7,0.42429]
[1726191197901,0.42425,2357.0,2356.6,2.9781]
[1726191198309,3.2078,2357.0,2356.6,2.5538]
[1726191198491,0.42426,2356.9,2356.6,2.9781]
[1726191199494,0.4243,2356.7,2356.6,0.7859]
[1726191199696,0.42432,2356.6,2356.3,1.2091]
[1726191199888,0.42432,2356.6,2356.3,1.63347]
[1726191200601,2.19341,2356.7,2356.3,1.63347]
[1726191200798,1.7691,2356.7,2356.3,0.8104]
[1726191201093,1.79436,2356.4,2356.0,0.79392]
[1726191201305,1.79436,2356.4,2356.0,1.19672]
[1726191201498,0.42437,2356.3,2356.0,0.7723]
[1726191201697,0.42437,2356.3,2355.5,12.59056848]
[1726191201698,0.42443,2356.0,2355.5,0.42451]
[1726191201899,0.42443,2356.0,2355.6,0.7844]
[1726191202093,0.42443,2356.0,2355.6,1.20889]
[1726191202299,3.63223,2356.0,2355.6,1.20889]
[1726191202703,3.63223,2356.0,2355.6,0.7844]
[1726191203304,3.63224,2356.0,2355.6,0.7844]
[1726191203502,0.42444,2356.0,2355.6,0.7844]
[1726191203801,0.42444,2356.0,2355.6,1.20889]
[1726191204002,3.63224,2356.0,2355.6,1.20889]
[1726191204200,3.2078,2356.0,2355.6,1.20889]
[1726191204398,0.8123,2356.2,2355.7,0.42447]
[1726191204900,0.42441,2356.1,2355.6,0.7844]
[1726191205100,0.3879,2356.2,2355.8,0.42445]
[1726191205306,0.42441,2356.1,2355.8,0.42445]
[1726191207301,0.42442,2356.0,2355.7,0.42447]
[1726191207503,0.42442,2356.0,2355.6,0.7844]
[1726191207504,0.42442,2356.0,2355.8,0.42446]
[1726191207706,0.42441,2356.1,2355.8,0.42446]
[1726191208100,0.3879,2356.2,2355.6,0.7844]
[1726191208298,0.82168,2356.3,2356.0,0.42441]
[1726191208497,0.4923,2356.5,2356.1,4.3769]
[1726191208802,3.63213,2356.6,2356.4,0.42434]
[1726191209001,3.63213,2356.6,2356.5,0.3976]
[1726191210703,3.2078,2356.6,2356.5,0.3976]
[1726191211501,3.3547,2356.7,2356.5,0.82193]
[1726191211712,3.3547,2356.7,2356.6,0.42431]
[1726191211713,0.3747,2356.7,2356.6,0.42431]
[1726191211904,0.3747,2356.7,2356.5,0.82192]
[1726191213305,0.42428,2356.8,2356.5,0.82192]
[1726191215502,0.42428,2356.8,2356.6,0.42431]
[1726191216410,0.42432,2356.6,2356.3,0.42435]
[1726191216610,0.42433,2356.5,2356.2,0.82017]
[1726191216813,0.83373,2356.5,2356.2,0.42437]
[1726191217111,2.98,2356.3,2356.1,0.4244]
[1726191219612,2.98,2356.3,2355.9,0.4056]
[1726191219909,0.42439,2356.2,2355.9,0.4056]
[1726191220115,0.42439,2356.2,2355.9,0.83002]
[1726191220329,0.4244,2356.1,2355.9,0.83002]
[1726191220618,0.3997,2356.1,2355.9,0.83002]
[1726191220808,0.3997,2356.1,2356.0,0.42442]
[1726191222406,0.3997,2356.1,2355.9,0.83004]
[1726191222612,0.3997,2356.1,2356.0,0.42442]
[1726191222808,0.7825,2356.1,2356.0,0.42442]
[1726191224416,0.7825,2356.1,2355.9,0.4056]
[1726191225405,0.7825,2356.1,2356.0,0.42442]
[1726191229424,3.40438,2356.3,2356.1,0.42439]
[1726191229626,1.17536,2356.4,2356.2,0.42439]
[1726191230120,0.42437,2356.3,2356.1,0.42439]
[1726191232025,4.38316,2356.4,2356.1,0.42439]
[1726191232623,4.38316,2356.4,2355.6,6.9052]
[1726191232624,4.04099,2356.2,2355.6,3.9252]
[1726191232825,3.2078,2356.0,2355.6,3.9252]
[1726191233014,0.4046,2355.9,2355.8,0.42446]
[1726191233218,0.7801,2355.9,2355.8,0.42446]
[1726191233419,0.7801,2355.9,2355.7,0.42446]
[1726191233828,1.20454,2355.9,2355.7,0.42446]
[1726191236527,0.7801,2355.9,2355.7,0.42446]
[1726191238521,1.20455,2355.9,2355.6,0.42448]
[1726191238829,0.42447,2355.8,2355.6,0.42449]
[1726191239024,0.42448,2355.7,2355.5,0.42451]
[1726191239329,2.98,2355.7,2355.4,1.59431]
[1726191239531,2.98,2355.7,2355.4,1.19722]
[1726191239532,0.4245,2355.6,2355.4,1.19722]
[1726191239723,3.40451,2355.5,2355.4,0.3973]
[1726191239922,3.7419,2355.5,2355.4,0.42453]
[1726191240123,3.7419,2355.5,2355.3,0.3741]
[1726191241424,3.353,2355.5,2355.4,0.42453]
[1726191241633,0.373,2355.5,2355.4,0.42453]
[1726191242826,3.63227,2355.8,2355.6,0.42449]
[1726191243131,3.63227,2355.8,2355.7,0.3713]
[1726191243425,0.42449,2355.7,2355.5,0.4245]
[1726191243621,0.42449,2355.7,2355.6,0.42449]
[1726191243817,0.42447,2355.8,2355.6,0.42448]
[1726191244021,0.42447,2355.8,2355.4,0.3713]
[1726191244228,0.42447,2355.8,2355.6,0.42448]
[1726191244824,0.42447,2355.8,2355.7,0.42448]
[1726191245229,0.42443,2356.0,2355.8,0.42446]
[1726191245429,0.42443,2356.0,2355.9,0.8154]
[1726191247129,0.42444,2355.9,2355.5,1.11202073]
[1726191247426,0.42444,2355.9,2355.6,0.7829]
[1726191247427,2.98,2355.9,2355.6,0.7829]
[1726191247636,2.98,2355.9,2355.8,0.42446]
[1726191247929,2.98,2355.9,2355.7,0.42447]
[1726191247930,3.40444,2355.9,2355.7,0.42447]
[1726191248133,2.98,2355.9,2355.8,0.42446]
[1726191250321,3.40444,2355.9,2355.8,0.42446]
[1726191250827,2.98,2355.9,2355.8,0.42446]
[1726191251536,3.40444,2355.9,2355.8,0.42446]
[1726191252436,2.98,2355.9,2355.8,0.42446]
[1726191253131,3.40444,2355.9,2355.7,0.42447]
[1726191253326,0.7609,2355.8,2355.7,0.42447]
[1726191253731,2.98,2355.9,2355.8,0.42446]
[1726191254735,0.3799,2356.1,2355.9,0.42443]
[1726191254736,3.7843,2356.1,2355.9,0.42443]
[1726191255125,3.3599,2356.1,2355.7,0.3944]
[1726191255326,3.3599,2356.1,2356.0,0.42442]
[1726191255538,3.78431,2356.1,2355.9,0.42443]
[1726191256929,3.3599,2356.1,2356.0,0.42442]
[1726191257136,2.98,2356.1,2356.0,0.42442]
[1726191257842,2.98,2356.3,2356.0,0.42442]
[1726191258133,0.4045,2356.4,2356.3,0.42437]
[1726191259128,2.98,2356.5,2356.4,0.42435]
[1726191259528,2.98,2356.5,2356.1,1.193]
[1726191259529,2.98,2356.5,2356.3,0.42436]
[1726191259839,3.19348572,2356.5,2356.3,0.42436]
[1726191263339,3.19348572,2356.5,2356.1,1.193]
[1726191263838,3.19348572,2356.5,2356.3,0.42436]
[1726191265137,3.19348572,2356.5,2356.2,0.42438]
[1726191265345,0.42435,2356.4,2356.2,0.42438]
[1726191265637,0.3872,2356.4,2356.3,0.42437]
[1726191266947,0.7562,2356.4,2356.3,0.42437]
[1726191268236,2.1362,2356.4,2356.3,0.42437]
[1726191271049,1.38,2356.4,2356.3,0.42437]
[1726191281155,1.7641,2356.4,2356.3,0.42437]
[1726191290155,2.18845,2356.4,2356.3,0.42437]
[1726191290355,1.7641,2356.4,2356.3,0.42437]
[1726191306471,1.7641,2356.4,2356.3,1.53639073]
[1726191306968,1.7641,2356.4,2356.3,0.42437]
[1726191307266,1.7641,2356.4,2356.3,1.53639073]
[1726191307467,1.7641,2356.4,2356.3,0.42437]
[1726191308371,3.3068,2357.0,2356.7,0.42429]
[1726191308670,0.3845,2356.8,2356.7,0.42429]
[1726191308878,0.099,2357.2,2356.7,5.35757063]
[1726191309168,0.099,2357.2,2357.0,1.53861063]
[1726191309169,0.3845,2357.1,2357.0,1.53861063]
[1726191309360,0.3845,2357.1,2357.0,1.20194]
[1726191309559,1.7645,2357.1,2357.0,2.31631063]
[1726191309864,1.7645,2357.1,2357.0,1.20194]
[1726191312969,0.3845,2357.1,2357.0,1.20194]
[1726191313170,1.7645,2357.1,2357.0,1.20194]
[1726191315965,3.2078,2357.4,2357.2,0.42421]
[1726191316365,3.2078,2357.4,2357.0,3.9855]
[1726191316366,0.3922,2357.5,2357.4,0.42417]
[1726191318476,0.3922,2357.5,2357.1,0.42422]
[1726191318677,1.38,2357.2,2357.0,0.7777]
[1726191318972,1.38,2357.2,2357.1,0.42422]
[1726191320980,1.38,2357.2,2357.1,0.81312]
[1726191323170,1.38,2357.3,2357.2,0.42421]
[1726191323683,0.3922,2357.5,2357.4,0.42417]
[1726191324073,1.7722,2357.5,2357.4,0.42417]
[1726191325874,9.2216,2357.5,2357.1,0.3889]
[1726191326084,9.2216,2357.5,2357.0,0.82573]
[1726191326085,1.38,2357.2,2357.0,0.82573]
[1726191326276,0.3776,2357.1,2356.9,0.81815]
[1726191326474,1.38,2357.0,2356.9,0.42425]
[1726191327177,2.19525,2357.0,2356.8,0.42427]
[1726191327385,1.38,2356.9,2356.8,0.42427]
[1726191327882,4.5878,2356.9,2356.8,0.42427]
[1726191329990,4.5878,2356.9,2356.6,0.8182]
[1726191329991,1.38,2356.9,2356.6,0.8182]
[1726191330286,1.38,2356.7,2356.6,0.8182]
[1726191330475,1.38,2356.8,2356.7,0.42428]
[1726191330886,1.38,2356.8,2356.7,0.83108]
[1726191332585,1.38,2356.8,2356.2,3.9252]
[1726191332787,2.6075,2356.7,2356.5,0.42433]
[1726191332985,1.38,2356.7,2356.6,0.42431]
[1726191334891,1.8043,2356.7,2356.6,0.42431]
[1726191335190,1.7849,2356.7,2356.6,0.42431]
[1726191344293,4.00667,2356.9,2356.7,0.42429]
[1726191344294,1.38,2356.8,2356.7,0.42429]
[1726191346296,0.3746,2356.9,2356.8,0.42428]
[1726191346493,0.79886,2356.9,2356.8,0.42428]
[1726191347601,0.3746,2356.9,2356.8,0.42428]
[1726191348495,0.79886,2356.9,2356.8,0.42428]
[1726191349091,0.3746,2356.9,2356.8,0.42428]
[1726191353793,1.38,2357.0,2356.9,0.42426]
[1726191353986,0.7912,2357.3,2356.8,3.2078]
[1726191354194,0.42421,2357.2,2357.1,0.42422]
[1726191354998,2.9984,2357.3,2357.1,0.42422]
[1726191359195,1.38,2357.2,2357.1,0.42422]
[1726191359400,1.38,2357.2,2357.0,0.3743]
[1726191359401,1.80421,2357.2,2357.0,0.3743]
[1726191359600,1.80421,2357.2,2357.0,0.79853]
[1726191360401,1.80421,2357.2,2357.1,0.42422]
[1726191361196,1.80421,2357.2,2357.0,0.79853]
[1726191362701,3.2078,2357.1,2356.8,0.42427]
[1726191362907,3.2078,2357.1,2356.7,3.2078]
[1726191362908,0.42429,2356.8,2356.6,5.0922]
[1726191363104,0.3688,2356.7,2356.6,1.167]
[1726191363301,0.3688,2356.7,2356.6,1.59131]
[1726191366294,2.59237,2356.9,2356.7,0.4243]
[1726191366498,2.96817,2356.9,2356.7,0.4243]
[1726191366806,2.96817,2356.9,2356.6,1.5913]
[1726191367699,0.42428,2356.8,2356.6,1.5913]
[1726191368302,2.96817,2356.9,2356.6,1.5913]
[1726191368503,0.42428,2356.8,2356.6,1.167]
[1726191368704,1.38,2356.7,2356.6,1.167]
[1726191369119,1.38,2356.7,2356.6,0.3789]
[1726191369502,1.38,2356.7,2356.5,0.42432]
[1726191369703,1.77,2356.6,2356.1,8.67177063]
[1726191369914,1.38,2356.2,2356.1,3.6322]
[1726191370111,1.38,2356.3,2356.2,1.23497]
[1726191370610,1.38,2356.4,2356.2,1.23497]
[1726191371001,1.38,2356.4,2356.3,0.4085]
[1726191372211,1.59443066,2356.5,2356.3,0.83287]
[1726191372414,1.59443066,2356.5,2356.4,0.42435]
[1726191372415,0.21443066,2356.5,2356.4,0.42435]
[1726191373311,1.77,2356.6,2356.3,0.4085]
[1726191373610,1.77,2356.6,2356.4,0.93191153]
[1726191373810,1.77,2356.6,2356.4,0.42434]
[1726191374010,2.19432,2356.6,2356.4,0.42434]
[1726191376207,0.20762208,2356.5,2356.4,0.42434]
[1726191376407,0.20762208,2356.5,2356.4,0.93191058]
[1726191376811,0.20762208,2356.5,2356.4,1.53871063]
[1726191377009,2.01195208,2356.5,2356.4,1.11437063]
[1726191377214,2.01195208,2356.5,2356.2,1.92497063]
[1726191377215,0.42437,2356.3,2356.2,1.92497063]
[1726191377408,1.80437,2356.3,2356.2,1.62197999]
[1726191377604,1.80437,2356.3,2356.2,1.11437063]
[1726191377907,1.80437,2356.3,2355.9,2.84499848]
[1726191377908,0.42439,2356.2,2356.0,1.11437063]